[Event "*** SCC Grand Prix: Titled Tuesday Blitz"]
[Site "Chess.com"]
[Date "2020.06.02"]
[Round "3"]
[White "Mikhal867"]
[Black "Balla_Tamas"]
[Result "1-0"]
[WhiteElo "2288"]
[BlackElo "2486"]
[TimeControl "180+1"]
[EndTime "10:25:44 PDT"]
[Termination "Mikhal867 won by resignation"]

1. e4 {[%clk 0:02:47.9]} 1... c5 {[%clk 0:02:57.2]} 2. Nf3 {[%clk 0:02:47.1]}
2... e6 {[%clk 0:02:55.9]} 3. c3 {[%clk 0:02:46.6]} 3... d5 {[%clk 0:02:49.8]}
4. exd5 {[%clk 0:02:46.3]} 4... exd5 {[%clk 0:02:49.9]} 5. d4 {[%clk 0:02:46.4]}
5... a6 {[%clk 0:02:49.9]} 6. dxc5 {[%clk 0:02:43.9]} 6... Bxc5 {[%clk
0:02:49.1]} 7. Be2 {[%clk 0:02:41.7]} 7... Nf6 {[%clk 0:02:48.1]} 8. O-O {[%clk
0:02:41.2]} 8... O-O {[%clk 0:02:47.8]} 9. Bg5 {[%clk 0:02:41]} 9... Be6 {[%clk
0:02:45.1]} 10. Nbd2 {[%clk 0:02:40]} 10... Nc6 {[%clk 0:02:41.5]} 11. Nb3
{[%clk 0:02:39.5]} 11... Ba7 {[%clk 0:02:40.3]} 12. Nfd4 {[%clk 0:02:38]} 12...
h6 {[%clk 0:02:38.9]} 13. Bh4 {[%clk 0:02:34.5]} 13... g5 {[%clk 0:02:33.5]} 14.
Bg3 {[%clk 0:02:28.2]} 14... Ne4 {[%clk 0:02:33.1]} 15. Nxe6 {[%clk 0:02:22.3]}
15... fxe6 {[%clk 0:02:30.4]} 16. Bg4 {[%clk 0:02:18.5]} 16... Qf6 {[%clk
0:02:25.4]} 17. Nd4 {[%clk 0:02:15.9]} 17... Nxd4 {[%clk 0:02:21.5]} 18. cxd4
{[%clk 0:02:15.4]} 18... Rae8 {[%clk 0:02:16.1]} 19. Be5 {[%clk 0:02:13.3]}
19... Qg6 {[%clk 0:02:14.4]} 20. Bh5 {[%clk 0:02:09.2]} 20... Qf5 {[%clk
0:02:10]} 21. Bxe8 {[%clk 0:02:08]} 21... Rxe8 {[%clk 0:02:09]} 22. Qh5 {[%clk
0:02:01.7]} 22... Re7 {[%clk 0:02:07]} 23. g4 {[%clk 0:01:47.1]} 23... Qh7
{[%clk 0:01:51.8]} 24. Rac1 {[%clk 0:01:45.7]} 1-0

[Event "*** SCC Grand Prix: Titled Tuesday Blitz"]
[Site "Chess.com"]
[Date "2020.06.02"]
[Round "3"]
[White "14Sokol88"]
[Black "RobertoJBM"]
[Result "1/2-1/2"]
[WhiteElo "2423"]
[BlackElo "2625"]
[TimeControl "180+1"]
[EndTime "10:25:51 PDT"]
[Termination "Game drawn by agreement"]

1. e4 {[%clk 0:03:00.9]} 1... c6 {[%clk 0:02:59.4]} 2. d4 {[%clk 0:02:59.9]}
2... d5 {[%clk 0:03:00.3]} 3. Nc3 {[%clk 0:03:00]} 3... dxe4 {[%clk 0:03:00.6]}
4. Nxe4 {[%clk 0:03:00.6]} 4... Nd7 {[%clk 0:03:01.2]} 5. Nf3 {[%clk 0:02:58.8]}
5... Ngf6 {[%clk 0:03:00.7]} 6. Nxf6+ {[%clk 0:02:58.8]} 6... Nxf6 {[%clk
0:03:01.6]} 7. Bc4 {[%clk 0:02:58.3]} 7... Nd5 {[%clk 0:02:59.8]} 8. h3 {[%clk
0:02:45.1]} 8... Bf5 {[%clk 0:02:58.8]} 9. c3 {[%clk 0:02:38.6]} 9... e6 {[%clk
0:02:58.7]} 10. O-O {[%clk 0:02:38]} 10... Be7 {[%clk 0:02:58.3]} 11. Re1 {[%clk
0:02:34.9]} 11... O-O {[%clk 0:02:58]} 12. Ne5 {[%clk 0:02:19.3]} 12... h6
{[%clk 0:02:57.8]} 13. Bd3 {[%clk 0:02:14.8]} 13... Bxd3 {[%clk 0:02:56.6]} 14.
Nxd3 {[%clk 0:02:07]} 14... Bd6 {[%clk 0:02:54.4]} 15. a4 {[%clk 0:02:00.1]}
15... Qc7 {[%clk 0:02:43.6]} 16. Qe2 {[%clk 0:01:58.3]} 16... Rfe8 {[%clk
0:02:42.8]} 17. Bd2 {[%clk 0:01:54.6]} 17... Bf4 {[%clk 0:02:39.1]} 18. Nxf4
{[%clk 0:01:51.4]} 18... Nxf4 {[%clk 0:02:40]} 19. Bxf4 {[%clk 0:01:47.6]} 19...
Qxf4 {[%clk 0:02:40.9]} 20. Qe5 {[%clk 0:01:46.4]} 20... Qxe5 {[%clk 0:02:40.5]}
21. Rxe5 {[%clk 0:01:46.1]} 21... Red8 {[%clk 0:02:40.8]} 22. g3 {[%clk
0:01:26.4]} 22... g6 {[%clk 0:02:40.5]} 23. Kg2 {[%clk 0:01:25.5]} 23... Kg7
{[%clk 0:02:39.8]} 24. h4 {[%clk 0:01:25.6]} 24... h5 {[%clk 0:02:40]} 25. Rae1
{[%clk 0:01:24.2]} 25... Rac8 {[%clk 0:02:38.1]} 26. Kf3 {[%clk 0:01:17.3]}
26... Kf6 {[%clk 0:02:34.6]} 27. R1e3 {[%clk 0:01:15.4]} 27... Rd5 {[%clk
0:02:29.4]} 28. Ke2 {[%clk 0:01:13.4]} 28... Rxe5 {[%clk 0:02:25.9]} 29. dxe5+
{[%clk 0:01:06.6]} 29... Ke7 {[%clk 0:02:26.2]} 30. Rd3 {[%clk 0:01:06.3]} 30...
Rg8 {[%clk 0:02:21.3]} 31. f4 {[%clk 0:01:01.8]} 31... Rc8 {[%clk 0:02:08.2]}
1/2-1/2

[Event "*** SCC Grand Prix: Titled Tuesday Blitz"]
[Site "Chess.com"]
[Date "2020.06.02"]
[Round "3"]
[White "Sunnika"]
[Black "Lagmantr"]
[Result "0-1"]
[WhiteElo "2398"]
[BlackElo "2624"]
[TimeControl "180+1"]
[EndTime "10:25:51 PDT"]
[Termination "Lagmantr won by resignation"]

1. d4 {[%clk 0:03:00.9]} 1... Nf6 {[%clk 0:02:59.5]} 2. Nf3 {[%clk 0:03:01.3]}
2... c5 {[%clk 0:03:00]} 3. c3 {[%clk 0:03:00.9]} 3... cxd4 {[%clk 0:03:00.2]}
4. cxd4 {[%clk 0:03:01.3]} 4... e6 {[%clk 0:03:00.6]} 5. Nc3 {[%clk 0:03:02]}
5... d5 {[%clk 0:03:00.9]} 6. Bf4 {[%clk 0:03:01.3]} 6... Bd6 {[%clk 0:03:01.5]}
7. e3 {[%clk 0:03:01.7]} 7... Bxf4 {[%clk 0:03:01]} 8. exf4 {[%clk 0:03:02.6]}
8... O-O {[%clk 0:03:01.9]} 9. Bd3 {[%clk 0:03:02.1]} 9... b6 {[%clk 0:03:02.3]}
10. O-O {[%clk 0:03:01.5]} 10... Ba6 {[%clk 0:03:02.9]} 11. Bxa6 {[%clk
0:03:00.3]} 11... Nxa6 {[%clk 0:03:03.8]} 12. Ne5 {[%clk 0:03:01.1]} 12... Rc8
{[%clk 0:03:04.2]} 13. Qe2 {[%clk 0:02:59.8]} 13... Nb4 {[%clk 0:03:01.4]} 14.
Rac1 {[%clk 0:02:56.3]} 14... Qc7 {[%clk 0:02:57.7]} 15. a3 {[%clk 0:02:52.7]}
15... Nc6 {[%clk 0:02:57.8]} 16. Nb5 {[%clk 0:02:53.1]} 16... Nxd4 {[%clk
0:02:57.9]} 17. Qe3 {[%clk 0:02:10.4]} 17... Qxc1 {[%clk 0:02:56.9]} 18. Qxd4
{[%clk 0:01:53.2]} 18... Ne4 {[%clk 0:02:56.3]} 19. f3 {[%clk 0:01:46.9]} 19...
Qc5 {[%clk 0:02:40.4]} 20. Qxc5 {[%clk 0:01:17.4]} 20... Rxc5 {[%clk 0:02:35]}
21. Nxa7 {[%clk 0:01:03.9]} 21... Ra8 {[%clk 0:02:34.5]} 22. Nac6 {[%clk
0:00:57]} 22... f6 {[%clk 0:02:14.3]} 23. Ne7+ {[%clk 0:00:48.5]} 23... Kf8
{[%clk 0:02:13.6]} 24. Nd7+ {[%clk 0:00:48.9]} 24... Kxe7 {[%clk 0:02:13.7]} 25.
Nxc5 {[%clk 0:00:49.1]} 25... Nxc5 {[%clk 0:02:14.6]} 0-1

[Event "*** SCC Grand Prix: Titled Tuesday Blitz"]
[Site "Chess.com"]
[Date "2020.06.02"]
[Round "3"]
[White "Diego_FloresQ"]
[Black "praveenb2002"]
[Result "0-1"]
[WhiteElo "2432"]
[BlackElo "2732"]
[TimeControl "180+1"]
[EndTime "10:25:52 PDT"]
[Termination "praveenb2002 won by resignation"]

1. e4 {[%clk 0:03:00.9]} 1... c6 {[%clk 0:02:59.2]} 2. d4 {[%clk 0:02:58.2]}
2... d5 {[%clk 0:03:00.1]} 3. Nc3 {[%clk 0:02:51.7]} 3... dxe4 {[%clk
0:03:00.1]} 4. Nxe4 {[%clk 0:02:52.6]} 4... Bf5 {[%clk 0:03:00.5]} 5. Ng3 {[%clk
0:02:52.8]} 5... Bg6 {[%clk 0:03:00.6]} 6. h4 {[%clk 0:02:52.8]} 6... h6 {[%clk
0:03:00.2]} 7. Nf3 {[%clk 0:02:49.7]} 7... Nd7 {[%clk 0:03:00.6]} 8. h5 {[%clk
0:02:48.7]} 8... Bh7 {[%clk 0:03:01.2]} 9. Bd3 {[%clk 0:02:49.3]} 9... Bxd3
{[%clk 0:03:01.3]} 10. Qxd3 {[%clk 0:02:50.2]} 10... e6 {[%clk 0:03:02]} 11. Bd2
{[%clk 0:02:50.2]} 11... Ngf6 {[%clk 0:03:00.4]} 12. O-O-O {[%clk 0:02:50.5]}
12... Be7 {[%clk 0:02:59]} 13. Ne4 {[%clk 0:02:45.9]} 13... Nxe4 {[%clk
0:02:57.9]} 14. Qxe4 {[%clk 0:02:46.8]} 14... Nf6 {[%clk 0:02:58.4]} 15. Qe2
{[%clk 0:02:47]} 15... Qd5 {[%clk 0:02:58.4]} 16. Kb1 {[%clk 0:02:47.3]} 16...
Qe4 {[%clk 0:02:57.7]} 17. Qxe4 {[%clk 0:02:46.9]} 17... Nxe4 {[%clk 0:02:58.2]}
18. Be3 {[%clk 0:02:47.5]} 18... f5 {[%clk 0:02:49.3]} 19. Ne5 {[%clk
0:02:45.1]} 19... f4 {[%clk 0:02:20.4]} 20. Bxf4 {[%clk 0:01:52.2]} 20... Nxf2
{[%clk 0:02:18.3]} 21. Ng6 {[%clk 0:01:52.7]} 21... Rg8 {[%clk 0:01:10.5]} 22.
Rde1 {[%clk 0:01:45.8]} 22... Nxh1 {[%clk 0:01:04.2]} 23. Rxe6 {[%clk
0:01:45.1]} 23... O-O-O {[%clk 0:01:04.4]} 24. Nxe7+ {[%clk 0:01:44.6]} 24...
Kd7 {[%clk 0:01:04.6]} 25. Nxg8 {[%clk 0:01:45.5]} 25... Kxe6 {[%clk 0:01:04.8]}
0-1

[Event "*** SCC Grand Prix: Titled Tuesday Blitz"]
[Site "Chess.com"]
[Date "2020.06.02"]
[Round "3"]
[White "Kaua18"]
[Black "DariaVoit"]
[Result "0-1"]
[WhiteElo "2335"]
[BlackElo "2534"]
[TimeControl "180+1"]
[EndTime "10:26:06 PDT"]
[Termination "DariaVoit won by checkmate"]

1. e4 {[%clk 0:03:00.9]} 1... e6 {[%clk 0:02:59.8]} 2. d4 {[%clk 0:03:00.6]}
2... d5 {[%clk 0:03:00]} 3. Nd2 {[%clk 0:03:00.3]} 3... Nf6 {[%clk 0:02:59.3]}
4. e5 {[%clk 0:03:00.2]} 4... Nfd7 {[%clk 0:02:58.9]} 5. Bd3 {[%clk 0:03:00.3]}
5... c5 {[%clk 0:02:58.8]} 6. c3 {[%clk 0:03:00.7]} 6... Nc6 {[%clk 0:02:59.1]}
7. Ne2 {[%clk 0:03:00.6]} 7... cxd4 {[%clk 0:02:58.7]} 8. cxd4 {[%clk
0:03:01.5]} 8... f6 {[%clk 0:02:59.1]} 9. exf6 {[%clk 0:03:00.1]} 9... Nxf6
{[%clk 0:03:00]} 10. Nf3 {[%clk 0:03:00.1]} 10... Bd6 {[%clk 0:03:00.3]} 11. O-O
{[%clk 0:02:56.8]} 11... O-O {[%clk 0:03:00.6]} 12. Bf4 {[%clk 0:02:55.6]} 12...
Bxf4 {[%clk 0:02:59.8]} 13. Nxf4 {[%clk 0:02:56.5]} 13... Ne4 {[%clk 0:03:00.3]}
14. Ne2 {[%clk 0:02:38.8]} 14... Rxf3 {[%clk 0:02:58.9]} 15. gxf3 {[%clk
0:02:38.8]} 15... Ng5 {[%clk 0:02:57.7]} 16. Kg2 {[%clk 0:02:27.5]} 16... e5
{[%clk 0:02:53.2]} 17. Ng1 {[%clk 0:02:21]} 17... Nxd4 {[%clk 0:02:36.5]} 18. f4
{[%clk 0:02:21.3]} 18... Nge6 {[%clk 0:02:27.5]} 19. Nh3 {[%clk 0:02:03.2]}
19... e4 {[%clk 0:01:59.8]} 20. Be2 {[%clk 0:01:45.5]} 20... Qh4 {[%clk
0:01:57.2]} 21. f5 {[%clk 0:01:14.5]} 21... Nxe2 {[%clk 0:01:40]} 22. fxe6
{[%clk 0:01:01.9]} 22... Qg4+ {[%clk 0:01:31]} 23. Kh1 {[%clk 0:01:01.7]} 23...
Qf3# {[%clk 0:01:30.6]} 0-1

[Event "*** SCC Grand Prix: Titled Tuesday Blitz"]
[Site "Chess.com"]
[Date "2020.06.02"]
[Round "3"]
[White "dianamirza"]
[Black "Tomytoteph"]
[Result "0-1"]
[WhiteElo "2024"]
[BlackElo "2297"]
[TimeControl "180+1"]
[EndTime "10:26:16 PDT"]
[Termination "Tomytoteph won by resignation"]

1. d4 {[%clk 0:03:00.9]} 1... Nf6 {[%clk 0:02:56.6]} 2. Nf3 {[%clk 0:02:58.8]}
2... e6 {[%clk 0:02:57.5]} 3. e3 {[%clk 0:02:58.2]} 3... c5 {[%clk 0:02:56.6]}
4. Bd3 {[%clk 0:02:58.2]} 4... cxd4 {[%clk 0:02:55.4]} 5. exd4 {[%clk
0:02:58.7]} 5... Nc6 {[%clk 0:02:55]} 6. O-O {[%clk 0:02:57.8]} 6... Be7 {[%clk
0:02:53.9]} 7. Nbd2 {[%clk 0:02:57.9]} 7... b6 {[%clk 0:02:51.5]} 8. a3 {[%clk
0:02:57.9]} 8... Bb7 {[%clk 0:02:51.1]} 9. b3 {[%clk 0:02:58]} 9... Rc8 {[%clk
0:02:48.8]} 10. Bb2 {[%clk 0:02:56.3]} 10... O-O {[%clk 0:02:47.2]} 11. Ne5
{[%clk 0:02:55.6]} 11... d6 {[%clk 0:02:44.9]} 12. Ng4 {[%clk 0:02:42.7]} 12...
Nxg4 {[%clk 0:02:38.3]} 13. Qxg4 {[%clk 0:02:43.6]} 13... Bf6 {[%clk 0:02:38.9]}
14. Nf3 {[%clk 0:02:39.1]} 14... Ne7 {[%clk 0:02:20.2]} 15. Ng5 {[%clk
0:02:16.1]} 15... Bxg5 {[%clk 0:02:16.7]} 16. Qxg5 {[%clk 0:02:15.3]} 16... Ng6
{[%clk 0:02:15.4]} 17. Qg3 {[%clk 0:02:08.2]} 17... Qf6 {[%clk 0:02:09.4]} 18.
Qxd6 {[%clk 0:01:52.6]} 18... Nf4 {[%clk 0:02:06.3]} 19. f3 {[%clk 0:01:30.1]}
19... Qg5 {[%clk 0:02:04.2]} 20. g4 {[%clk 0:01:26.8]} 20... Nxd3 {[%clk
0:02:00.3]} 21. cxd3 {[%clk 0:01:25.9]} 21... Qe3+ {[%clk 0:01:56.2]} 22. Rf2
{[%clk 0:01:19.3]} 22... Rc2 {[%clk 0:01:53.4]} 23. Rf1 {[%clk 0:01:03.9]} 23...
Rxb2 {[%clk 0:01:51.4]} 24. Qc7 {[%clk 0:01:00.9]} 24... Bxf3 {[%clk 0:01:48.9]}
25. Qg3 {[%clk 0:00:58]} 25... Rxf2 {[%clk 0:01:45.8]} 26. Rxf2 {[%clk
0:00:58.9]} 26... Qe1+ {[%clk 0:01:42.3]} 27. Rf1 {[%clk 0:00:55.2]} 27... Qxg3+
{[%clk 0:01:43.2]} 28. hxg3 {[%clk 0:00:55.9]} 28... Bd5 {[%clk 0:01:42.2]} 0-1

[Event "*** SCC Grand Prix: Titled Tuesday Blitz"]
[Site "Chess.com"]
[Date "2020.06.02"]
[Round "3"]
[White "Semetey"]
[Black "A-Fier"]
[Result "0-1"]
[WhiteElo "2527"]
[BlackElo "2742"]
[TimeControl "180+1"]
[EndTime "10:26:40 PDT"]
[Termination "A-Fier won by resignation"]

1. d4 {[%clk 0:03:00.9]} 1... Nf6 {[%clk 0:02:59.8]} 2. Nf3 {[%clk 0:03:01.2]}
2... e6 {[%clk 0:02:58.7]} 3. Bf4 {[%clk 0:03:00.5]} 3... b6 {[%clk 0:02:57.1]}
4. e3 {[%clk 0:03:00.4]} 4... Bb7 {[%clk 0:02:57.5]} 5. Nbd2 {[%clk 0:03:00.8]}
5... Be7 {[%clk 0:02:56.9]} 6. h3 {[%clk 0:03:00.9]} 6... c5 {[%clk 0:02:56.6]}
7. Bd3 {[%clk 0:03:00.2]} 7... O-O {[%clk 0:02:56.3]} 8. O-O {[%clk 0:02:57.9]}
8... d6 {[%clk 0:02:56.8]} 9. c3 {[%clk 0:02:54.5]} 9... Nbd7 {[%clk 0:02:56.7]}
10. Qe2 {[%clk 0:02:50.1]} 10... a6 {[%clk 0:02:55.3]} 11. a4 {[%clk 0:02:49.4]}
11... Qc7 {[%clk 0:02:49.3]} 12. Bh2 {[%clk 0:02:47.7]} 12... Rfe8 {[%clk
0:02:45.3]} 13. e4 {[%clk 0:02:46.4]} 13... cxd4 {[%clk 0:02:45.4]} 14. cxd4
{[%clk 0:02:46]} 14... e5 {[%clk 0:02:45.7]} 15. Rfc1 {[%clk 0:02:43.8]} 15...
Qb8 {[%clk 0:02:45.8]} 16. dxe5 {[%clk 0:02:34.6]} 16... Nxe5 {[%clk 0:02:41.9]}
17. Nxe5 {[%clk 0:02:30.7]} 17... dxe5 {[%clk 0:02:42.8]} 18. Nc4 {[%clk
0:02:28.2]} 18... Nd7 {[%clk 0:02:42.5]} 19. Rd1 {[%clk 0:01:59.9]} 19... Bc5
{[%clk 0:02:41.6]} 20. Kh1 {[%clk 0:01:59]} 20... Bd4 {[%clk 0:02:39.1]} 21.
Rac1 {[%clk 0:01:54]} 21... Re6 {[%clk 0:02:26.7]} 22. Bc2 {[%clk 0:01:49.3]}
22... Qd8 {[%clk 0:02:24.7]} 23. Rxd4 {[%clk 0:01:34.6]} 23... exd4 {[%clk
0:02:24.3]} 24. Nd6 {[%clk 0:01:35.1]} 24... Nc5 {[%clk 0:02:12.1]} 25. e5
{[%clk 0:01:01.4]} 25... Qxd6 {[%clk 0:02:09.1]} 26. Bxh7+ {[%clk 0:00:40.6]}
26... Kxh7 {[%clk 0:01:50]} 27. Qh5+ {[%clk 0:00:40]} 27... Rh6 {[%clk
0:01:49.9]} 28. Qf5+ {[%clk 0:00:36.5]} 28... Qg6 {[%clk 0:01:49.9]} 0-1

[Event "*** SCC Grand Prix: Titled Tuesday Blitz"]
[Site "Chess.com"]
[Date "2020.06.02"]
[Round "3"]
[White "atwalcb"]
[Black "Artem_Sadovsky"]
[Result "1-0"]
[WhiteElo "2359"]
[BlackElo "2516"]
[TimeControl "180+1"]
[EndTime "10:26:41 PDT"]
[Termination "atwalcb won by resignation"]

1. d4 {[%clk 0:03:00.9]} 1... g6 {[%clk 0:02:59.1]} 2. e4 {[%clk 0:02:58.7]}
2... Bg7 {[%clk 0:03:00]} 3. Nc3 {[%clk 0:02:58.4]} 3... d6 {[%clk 0:03:00.9]}
4. f4 {[%clk 0:02:58.3]} 4... a6 {[%clk 0:03:00.2]} 5. Nf3 {[%clk 0:02:57]} 5...
b5 {[%clk 0:03:00.6]} 6. a3 {[%clk 0:02:53.9]} 6... Bb7 {[%clk 0:03:01]} 7. Be3
{[%clk 0:02:53.2]} 7... Nf6 {[%clk 0:02:59.9]} 8. Bd3 {[%clk 0:02:50]} 8... Ng4
{[%clk 0:02:54.6]} 9. Qe2 {[%clk 0:02:44]} 9... Nxe3 {[%clk 0:02:53.8]} 10. Qxe3
{[%clk 0:02:44.4]} 10... Nd7 {[%clk 0:02:49.7]} 11. e5 {[%clk 0:02:44.1]} 11...
Nb6 {[%clk 0:02:41.2]} 12. e6 {[%clk 0:02:31.5]} 12... Bxf3 {[%clk 0:02:35.6]}
13. exf7+ {[%clk 0:02:26]} 13... Kxf7 {[%clk 0:02:36.2]} 14. Qxf3 {[%clk
0:02:26.3]} 14... Bxd4 {[%clk 0:02:14.2]} 15. f5 {[%clk 0:02:18.3]} 15... Bxc3+
{[%clk 0:02:14.4]} 16. bxc3 {[%clk 0:02:14.5]} 16... Kg7 {[%clk 0:02:11.1]} 17.
fxg6 {[%clk 0:02:05.6]} 17... hxg6 {[%clk 0:02:12]} 18. O-O {[%clk 0:02:01.2]}
18... Qg8 {[%clk 0:01:50.2]} 19. Bxg6 {[%clk 0:01:30.6]} 19... Qd5 {[%clk
0:01:39.3]} 20. Be4 {[%clk 0:01:24.4]} 20... Qc5+ {[%clk 0:01:38.6]} 21. Kh1
{[%clk 0:01:21.6]} 21... Rxh2+ {[%clk 0:01:06.3]} 22. Kxh2 {[%clk 0:01:21.4]}
22... Rh8+ {[%clk 0:01:06.8]} 23. Kg3 {[%clk 0:01:21.2]} 23... Qe5+ {[%clk
0:01:06.4]} 24. Qf4 {[%clk 0:01:16.9]} 24... Qxc3+ {[%clk 0:01:05.6]} 25. Rf3
{[%clk 0:01:13.3]} 25... Qxa1 {[%clk 0:00:55.7]} 26. Qf7+ {[%clk 0:01:12.8]} 1-0

[Event "*** SCC Grand Prix: Titled Tuesday Blitz"]
[Site "Chess.com"]
[Date "2020.06.02"]
[Round "3"]
[White "MNyuyu"]
[Black "2346PL"]
[Result "0-1"]
[WhiteElo "2266"]
[BlackElo "2454"]
[TimeControl "180+1"]
[EndTime "10:26:41 PDT"]
[Termination "2346PL won by resignation"]

1. d4 {[%clk 0:03:00.9]} 1... f5 {[%clk 0:02:59.6]} 2. Nf3 {[%clk 0:03:00.4]}
2... Nf6 {[%clk 0:03:00.1]} 3. Bf4 {[%clk 0:03:00.2]} 3... g6 {[%clk 0:03:00.7]}
4. e3 {[%clk 0:02:59.9]} 4... Bg7 {[%clk 0:03:01.3]} 5. h3 {[%clk 0:02:59.9]}
5... O-O {[%clk 0:02:59.1]} 6. Bc4+ {[%clk 0:02:59.8]} 6... e6 {[%clk 0:02:58]}
7. Nbd2 {[%clk 0:02:58.9]} 7... h6 {[%clk 0:02:53.1]} 8. c3 {[%clk 0:02:57]}
8... g5 {[%clk 0:02:53.5]} 9. Bh2 {[%clk 0:02:53.5]} 9... b6 {[%clk 0:02:52.2]}
10. Qe2 {[%clk 0:02:48.4]} 10... Bb7 {[%clk 0:02:51.5]} 11. O-O-O {[%clk
0:02:40.7]} 11... a5 {[%clk 0:02:51.2]} 12. e4 {[%clk 0:02:36.8]} 12... fxe4
{[%clk 0:02:48.1]} 13. Nxe4 {[%clk 0:02:36.1]} 13... Nxe4 {[%clk 0:02:46.1]} 14.
h4 {[%clk 0:02:31.8]} 14... g4 {[%clk 0:02:39.5]} 15. Bd3 {[%clk 0:02:31]} 15...
gxf3 {[%clk 0:02:38.2]} 16. gxf3 {[%clk 0:02:28.7]} 16... Nf6 {[%clk 0:02:36.2]}
17. Rhg1 {[%clk 0:02:27.4]} 17... Qe7 {[%clk 0:02:34.4]} 18. Rg6 {[%clk
0:02:23.7]} 18... Nh5 {[%clk 0:02:24.7]} 19. Be4 {[%clk 0:02:14.5]} 19... Bxe4
{[%clk 0:02:21.7]} 20. Qxe4 {[%clk 0:02:13.7]} 20... Nc6 {[%clk 0:02:14]} 21.
Rdg1 {[%clk 0:02:13]} 21... Kh8 {[%clk 0:02:07.4]} 22. Qg4 {[%clk 0:02:06.9]}
22... Rf5 {[%clk 0:02:06.2]} 23. Bxc7 {[%clk 0:01:53.8]} 23... b5 {[%clk
0:01:54.3]} 24. Qe4 {[%clk 0:01:47.9]} 24... Rc8 {[%clk 0:01:31.7]} 25. Bh2
{[%clk 0:01:36.3]} 25... Nxd4 {[%clk 0:01:27.7]} 26. Rxg7 {[%clk 0:01:29.9]}
26... Nxg7 {[%clk 0:01:24.7]} 27. Qxd4 {[%clk 0:01:28.9]} 27... e5 {[%clk
0:01:14.1]} 28. Qe4 {[%clk 0:01:24.8]} 28... Qe6 {[%clk 0:01:07.6]} 29. h5
{[%clk 0:01:21.6]} 29... d5 {[%clk 0:01:04.9]} 30. Qg4 {[%clk 0:01:20.5]} 30...
Rg5 {[%clk 0:01:03.6]} 31. Qxe6 {[%clk 0:01:16.8]} 31... Rxg1+ {[%clk
0:01:03.2]} 0-1

[Event "*** SCC Grand Prix: Titled Tuesday Blitz"]
[Site "Chess.com"]
[Date "2020.06.02"]
[Round "3"]
[White "icychess54"]
[Black "jocmil"]
[Result "1/2-1/2"]
[WhiteElo "2246"]
[BlackElo "2478"]
[TimeControl "180+1"]
[EndTime "10:26:45 PDT"]
[Termination "Game drawn by repetition"]

1. c4 {[%clk 0:03:00.5]} 1... Nf6 {[%clk 0:03:00]} 2. Nf3 {[%clk 0:03:00.2]}
2... g6 {[%clk 0:03:00.2]} 3. e3 {[%clk 0:03:01.1]} 3... Bg7 {[%clk 0:03:00.8]}
4. Be2 {[%clk 0:03:02]} 4... O-O {[%clk 0:03:01.3]} 5. O-O {[%clk 0:03:02.9]}
5... c5 {[%clk 0:03:01.9]} 6. Nc3 {[%clk 0:03:03.2]} 6... Nc6 {[%clk 0:03:02.1]}
7. d4 {[%clk 0:02:58.7]} 7... cxd4 {[%clk 0:03:02.1]} 8. Nxd4 {[%clk 0:02:58.2]}
8... Nxd4 {[%clk 0:03:02.2]} 9. exd4 {[%clk 0:02:57.4]} 9... d5 {[%clk
0:03:02.3]} 10. c5 {[%clk 0:02:57.2]} 10... b6 {[%clk 0:02:55.1]} 11. b4 {[%clk
0:02:53.9]} 11... a5 {[%clk 0:02:54.2]} 12. Na4 {[%clk 0:02:53.6]} 12... axb4
{[%clk 0:02:30.2]} 13. Nxb6 {[%clk 0:02:00.6]} 13... Rb8 {[%clk 0:02:28.3]} 14.
Bf4 {[%clk 0:01:55.9]} 14... Rxb6 {[%clk 0:02:27.2]} 15. cxb6 {[%clk 0:01:56.8]}
15... Qxb6 {[%clk 0:02:27.6]} 16. Be5 {[%clk 0:01:54.6]} 16... Ne4 {[%clk
0:02:27.8]} 17. Bxg7 {[%clk 0:01:50.7]} 17... Kxg7 {[%clk 0:02:28.7]} 18. Qb3
{[%clk 0:01:35.8]} 18... Nd2 {[%clk 0:02:15]} 19. Qxd5 {[%clk 0:01:34.9]} 19...
Nxf1 {[%clk 0:02:15]} 20. Rxf1 {[%clk 0:01:27.6]} 20... Rd8 {[%clk 0:02:13.6]}
21. Qe5+ {[%clk 0:01:25.8]} 21... Qf6 {[%clk 0:02:13.5]} 22. Qxf6+ {[%clk
0:00:52.5]} 22... Kxf6 {[%clk 0:02:14.4]} 23. Rd1 {[%clk 0:00:52]} 23... Be6
{[%clk 0:02:13.7]} 24. Rd2 {[%clk 0:00:51.6]} 24... Bd5 {[%clk 0:02:11.5]} 25.
Rb2 {[%clk 0:00:48.9]} 25... Rb8 {[%clk 0:02:05.4]} 26. f3 {[%clk 0:00:39.2]}
26... e5 {[%clk 0:01:49.5]} 27. dxe5+ {[%clk 0:00:37.5]} 27... Kxe5 {[%clk
0:01:50.4]} 28. Kf2 {[%clk 0:00:35.4]} 28... Kd4 {[%clk 0:01:50.7]} 29. Rd2+
{[%clk 0:00:31.3]} 29... Kc5 {[%clk 0:01:50]} 30. Rc2+ {[%clk 0:00:28.1]} 30...
Kd4 {[%clk 0:01:49.4]} 31. Rd2+ {[%clk 0:00:28.2]} 31... Kc5 {[%clk 0:01:49.6]}
32. Rc2+ {[%clk 0:00:28.2]} 32... Kd4 {[%clk 0:01:49.9]} 33. Rd2+ {[%clk
0:00:27.9]} 1/2-1/2